fUSD/lending_fUSD_20240105
["ID","MTS","AMOUNT","RATE_DAILY","PERIOD"]
[310249307,1704421840031,-5228.33718143,0.00032877,2]
[310249308,1704421840159,-1378.25040696,0.00032877,2]
[310249309,1704421840302,-3781.21866403,0.00032877,2]
[310249312,1704421840717,-1250.511229,0.00032877,2]
[310249313,1704421840730,-305.70342405,0.00032877,2]
[310249314,1704421840746,-3320.24909453,0.00032877,2]
[310249315,1704421840755,-500.0,0.00032877,2]
[310249316,1704421840765,-155.0,0.00032877,2]
[310249317,1704421840774,-1967.4074979,0.00033,2]
[310249318,1704421840783,-600.27296761,0.00033,7]
[310249319,1704421840792,-3134.11778579,0.00033,7]
[310249320,1704421840814,-841.9226763,0.00033,7]
[310249321,1704421840842,-452.73586393,0.00033,7]
[310249334,1704421843116,-825.61513148,0.00032,2]
[310249335,1704421843127,-825.61513148,0.00032,2]
[310249336,1704421843137,-825.61513148,0.00032,2]
[310249337,1704421843147,-825.61513148,0.00032,2]
[310249338,1704421843157,-530.29059599,0.00032,2]
[310249339,1704421843169,-295.32453549,0.00032,2]
[310249340,1704421843179,-504.38987398,0.00033,7]
[310249341,1704421843189,-400.0,0.00033,3]
[310249342,1704421843201,-498.35,0.00033076,2]
[310249343,1704421843211,-500.0,0.00033406,2]
[310249344,1704421843220,-154.14359681,0.00033491,2]
[310249345,1704421843230,-153.84,0.0003379,2]
[310249346,1704421843239,-500.0,0.00033799,2]
[310249347,1704421843249,-500.0,0.00033799,2]
[310249348,1704421843258,-500.0,0.00033799,2]
[310249349,1704421843267,-500.0,0.00033799,2]
[310249350,1704421843276,-500.0,0.00033799,2]
[310249351,1704421843285,-500.0,0.00033799,2]
[310249352,1704421843294,-483.54239372,0.00033799,2]
[310249353,1704421843310,-16.45760628,0.00033799,2]
[310249354,1704421843319,-500.0,0.00033799,2]
[310249355,1704421843329,-500.0,0.00033799,2]
[310249356,1704421843338,-500.0,0.00033799,2]
[310249357,1704421843347,-500.0,0.00033799,2]
[310249358,1704421843356,-500.0,0.00033799,2]
[310249359,1704421843365,-500.0,0.00033799,2]
[310249360,1704421843373,-500.0,0.00033799,2]
[310249361,1704421843383,-150.0,0.00033799,2]
[310249362,1704421843393,-500.0,0.00033799,2]
[310249363,1704421843403,-500.0,0.00033799,2]
[310249364,1704421843412,-500.0,0.00033799,2]
[310249365,1704421843422,-500.0,0.00033799,2]
[310249366,1704421843431,-500.0,0.00033799,2]
[310249367,1704421843440,-500.0,0.00033799,2]
[310249368,1704421843451,-32.73183707,0.00033799,2]
[310249369,1704421843463,-467.26816293,0.00033799,2]
[310249370,1704421843472,-500.0,0.00033799,2]
[310249371,1704421843481,-500.0,0.00033799,2]
[310249372,1704421843491,-500.0,0.00033799,2]
[310249373,1704421843500,-500.0,0.00033799,2]
[310249374,1704421843509,-398.14738284,0.00033799,2]
[310249375,1704421843521,-101.85261716,0.00033799,2]
[310249376,1704421843532,-500.0,0.00033799,2]
[310249377,1704421843542,-500.0,0.00033799,2]
[310249378,1704421843551,-500.0,0.00033799,2]
[310249379,1704421843560,-500.0,0.00033799,2]
[310249380,1704421843569,-500.0,0.00033799,2]
[310249381,1704421843581,-500.0,0.00033799,2]
[310249382,1704421843598,-500.0,0.00033799,2]
[310249383,1704421843607,-500.0,0.00033799,2]
[310249384,1704421843621,-500.0,0.00033799,2]
[310249385,1704421843631,-500.0,0.00033799,2]
[310249386,1704421843640,-500.0,0.00033799,2]
[310249387,1704421843649,-500.0,0.00033799,2]
[310249388,1704421843658,-500.0,0.00033799,2]
[310249389,1704421843668,-500.0,0.00033799,2]
[310249390,1704421843679,-500.0,0.00033799,2]
[310249391,1704421843689,-500.0,0.00033799,2]
[310249392,1704421843700,-500.0,0.00033799,2]
[310249393,1704421843709,-500.0,0.00033799,2]
[310249394,1704421843719,-500.0,0.00033799,2]
[310249395,1704421843728,-500.0,0.00033799,2]
[310249396,1704421843739,-500.0,0.00033799,2]
[310249397,1704421843748,-500.0,0.00033799,2]
[310249398,1704421843757,-500.0,0.00033799,2]
[310249399,1704421843766,-500.0,0.00033799,2]
[310249400,1704421843775,-500.0,0.00033799,2]
[310249401,1704421843784,-500.0,0.00033799,2]
[310249402,1704421843793,-500.0,0.00033799,2]
[310249403,1704421843802,-500.0,0.00033799,2]
[310249404,1704421843810,-500.0,0.00033799,2]
[310249405,1704421843820,-500.0,0.00033799,2]
[310249406,1704421843829,-500.0,0.00033799,2]
[310249407,1704421843839,-500.0,0.00033799,2]
[310249408,1704421843848,-500.0,0.00033799,2]
[310249409,1704421843858,-500.0,0.00033799,2]
[310249410,1704421843868,-500.0,0.00033799,2]
[310249411,1704421843877,-500.0,0.00033799,2]
[310249412,1704421843886,-500.0,0.00033799,2]
[310249413,1704421843895,-500.0,0.00033799,2]
[310249414,1704421843904,-500.0,0.00033799,2]
[310249415,1704421843913,-500.0,0.00033799,2]
[310249416,1704421843923,-500.0,0.00033799,2]
[310249417,1704421843933,-500.0,0.00033799,2]
[310249418,1704421843943,-500.0,0.00033799,2]
[310249419,1704421843954,-500.0,0.00033799,2]
[310249420,1704421843963,-500.0,0.00033799,2]
[310249421,1704421843972,-500.0,0.00033799,2]
[310249422,1704421843982,-500.0,0.00033799,2]
[310249423,1704421843993,-500.0,0.00033799,2]
[310249424,1704421844003,-500.0,0.00033799,2]
[310249425,1704421844012,-500.0,0.00033799,2]
[310249426,1704421844021,-500.0,0.00033799,2]
[310249427,1704421844030,-500.0,0.00033799,2]
[310249428,1704421844040,-500.0,0.00033799,2]
[310249429,1704421844049,-500.0,0.00033799,2]
[310249430,1704421844058,-500.0,0.00033799,2]
[310249431,1704421844067,-500.0,0.00033799,2]
[310249432,1704421844076,-500.0,0.00033799,2]
[310249433,1704421844086,-500.0,0.00033799,2]
[310249434,1704421844095,-500.0,0.00033799,2]
[310249435,1704421844105,-500.0,0.00033799,2]
[310249436,1704421844114,-311.66,0.00033911,2]
[310249437,1704421844123,-1000.0,0.00034,4]
[310249438,1704421844133,-10000.0,0.00034,2]
[310249439,1704421844142,-581.77938682,0.00034,2]
[310249440,1704421844153,-581.77938682,0.00034,2]
[310249441,1704421844163,-581.77938682,0.00034,2]
[310249442,1704421844173,-581.77938682,0.00034,2]
[310249443,1704421844182,-581.77938682,0.00034,2]
[310249444,1704421844190,-581.77938682,0.00034,2]
[310249445,1704421844201,-581.77938682,0.00034,2]
[310249446,1704421844211,-581.77938682,0.00034,2]
[310249447,1704421844220,-581.77938682,0.00034,2]
[310249448,1704421844230,-581.77938682,0.00034,2]
[310249449,1704421844241,-581.77938682,0.00034,2]
[310249450,1704421844251,-581.77938682,0.00034,2]
[310249451,1704421844261,-581.77938682,0.00034,2]
[310249452,1704421844271,-581.77938682,0.00034,2]
[310249453,1704421844280,-581.77938682,0.00034,2]
[310249454,1704421844474,-581.77938682,0.00034,2]
[310249455,1704421844484,-581.77938682,0.00034,2]
[310249456,1704421844494,-581.77938682,0.00034,2]
[310249457,1704421844504,-581.77938682,0.00034,2]
[310249458,1704421844514,-581.77938682,0.00034,2]
[310249459,1704421844523,-581.77938682,0.00034,2]
[310249460,1704421844532,-581.77938682,0.00034,2]
[310249461,1704421844542,-581.77938682,0.00034,2]
[310249462,1704421844551,-581.77938682,0.00034,2]
[310249463,1704421844560,-581.77938682,0.00034,2]
[310249464,1704421844570,-581.77938682,0.00034,2]
[310249465,1704421844580,-581.77938682,0.00034,2]
[310249466,1704421844589,-581.77938682,0.00034,2]
[310249467,1704421844599,-581.77938682,0.00034,2]
[310249468,1704421844610,-581.77938682,0.00034,2]
[310249469,1704421844619,-581.77938682,0.00034,2]
[310249470,1704421844629,-581.77938682,0.00034,2]
[310249471,1704421844639,-581.77938682,0.00034,2]
[310249472,1704421844648,-581.77938682,0.00034,2]
[310249473,1704421844658,-581.77938682,0.00034,2]
[310249474,1704421844667,-581.77938682,0.00034,2]
[310249475,1704421844676,-581.77938682,0.00034,2]
[310249476,1704421844686,-581.77938682,0.00034,2]
[310249478,1704421844695,-581.77938682,0.00034,2]
[310249479,1704421844704,-581.77938682,0.00034,2]
[310249480,1704421844715,-581.77938682,0.00034,2]
[310249481,1704421844725,-581.77938682,0.00034,2]
[310249482,1704421844735,-581.77938682,0.00034,2]
[310249483,1704421844744,-581.77938682,0.00034,2]
[310249484,1704421844752,-581.77938682,0.00034,2]
[310249485,1704421844762,-581.77938682,0.00034,2]
[310249486,1704421844771,-581.77938682,0.00034,2]
[310249487,1704421844780,-581.77938682,0.00034,2]
[310249488,1704421844789,-581.77938682,0.00034,2]
[310249489,1704421844798,-581.77938682,0.00034,2]
[310249490,1704421844807,-581.77938682,0.00034,2]
[310249491,1704421844817,-581.77938682,0.00034,2]
[310249492,1704421844827,-581.77938682,0.00034,2]
[310249493,1704421844836,-581.77938682,0.00034,2]
[310249494,1704421844847,-581.77938682,0.00034,2]
[310249495,1704421844856,-581.77938682,0.00034,2]
[310249496,1704421844866,-581.77938682,0.00034,2]
[310249497,1704421844875,-581.77938682,0.00034,2]
[310249498,1704421844885,-581.77938682,0.00034,2]
[310249499,1704421844894,-581.77938682,0.00034,2]
[310249500,1704421844904,-581.77938682,0.00034,2]
[310249501,1704421844913,-581.77938682,0.00034,2]
[310249502,1704421844922,-581.77938682,0.00034,2]
[310249503,1704421844932,-581.77938682,0.00034,2]
[310249504,1704421844942,-581.77938682,0.00034,2]
[310249505,1704421844952,-581.77938682,0.00034,2]
[310249506,1704421844962,-581.77938682,0.00034,2]
[310249507,1704421844971,-581.77938682,0.00034,2]
[310249508,1704421844980,-581.77938682,0.00034,2]
[310249509,1704421844989,-581.77938682,0.00034,2]
[310249510,1704421844999,-581.77938682,0.00034,2]
[310249511,1704421845008,-581.77938682,0.00034,2]
[310249512,1704421845017,-567.67273181,0.00034,2]
[310249513,1704421845036,-14.10665501,0.00034,2]
[310249514,1704421845045,-581.77938682,0.00034,2]
[310249515,1704421845055,-581.77938682,0.00034,2]
[310249516,1704421845064,-581.77938682,0.00034,2]
[310249517,1704421845074,-581.77938682,0.00034,2]
[310249518,1704421845084,-581.77938682,0.00034,2]
[310249519,1704421845094,-581.77938682,0.00034,2]
[310249520,1704421845104,-581.77938682,0.00034,2]
[310249521,1704421845114,-581.77938682,0.00034,2]
[310249522,1704421845124,-581.77938682,0.00034,2]
[310249523,1704421845134,-581.77938682,0.00034,2]
[310249524,1704421845144,-581.77938682,0.00034,2]
[310249525,1704421845154,-581.77938682,0.00034,2]
[310249526,1704421845164,-581.77938682,0.00034,2]
[310249527,1704421845173,-581.77938682,0.00034,2]
[310249528,1704421845183,-581.77938682,0.00034,2]
[310249529,1704421845192,-581.77938682,0.00034,2]
[310249530,1704421845203,-581.77938682,0.00034,2]
[310249531,1704421845212,-581.77938682,0.00034,2]
[310249532,1704421845222,-581.77938682,0.00034,2]
[310249533,1704421845231,-581.77938682,0.00034,2]
[310249534,1704421845240,-581.77938682,0.00034,2]
[310249535,1704421845250,-581.77938682,0.00034,2]
[310249536,1704421845260,-581.77938682,0.00034,2]
[310249537,1704421845270,-581.77938682,0.00034,2]
[310249538,1704421845279,-581.77938682,0.00034,2]
[310249539,1704421845288,-581.77938682,0.00034,2]
[310249540,1704421845297,-581.77938682,0.00034,2]
[310249541,1704421845307,-4012.43617317,0.00034,2]
[310249542,1704421845317,-498.35,0.00034054,2]
[310249543,1704421845326,-833.0,0.00034176,2]
[310249544,1704421845335,-1927.0,0.00034176,2]
[310249545,1704421845344,-155.0,0.00034247,2]
[310249546,1704421845353,-222.0,0.00034399,10]
[310249547,1704421845362,-325.08110503,0.00034445,7]
[310249548,1704421845385,-500.0,0.00033799,2]
[310249549,1704421845394,-662.04255506,0.00034445,7]
[310249550,1704421845405,-378.3488105,0.00034445,7]
[310249551,1704421845414,-326.88873692,0.00034445,7]
[310249552,1704421845424,-762.43665326,0.00034445,7]
[310249553,1704421845434,-1767.31448512,0.00034445,7]
[310249554,1704421845444,-2666.9452342,0.00034445,7]
[310249555,1704421845453,-416.63304279,0.00034445,7]
[310249556,1704421845462,-612.620536,0.0003452,2]
[310249557,1704421845471,-2730.557452,0.0003452,2]
[310249558,1704421845480,-1392.760766,0.0003452,2]
[310249559,1704421845490,-1289.354496,0.0003452,2]
[310249560,1704421845499,-500.0,0.00034621,2]
[310249561,1704421845509,-180.0,0.00034658,2]
[310249562,1704421845519,-157.40105,0.00034698,2]
[310249563,1704421845528,-153.84,0.00034703,2]
[310249564,1704421845539,-918.930804,0.00034794,2]
[310249565,1704421845548,-2062.31093996,0.00034794,2]
[310249593,1704421846259,-185.90035436,0.00029799,2]
[310249594,1704421846270,-1140.97494023,0.00029799,2]
[310249595,1704421846372,-2145.9597276,0.00029799,2]
[310249596,1704421846381,-500.0,0.00033799,2]
[310249597,1704421846390,-500.0,0.00033799,2]
[310249598,1704421846400,-500.0,0.00033799,2]
[310249599,1704421846410,-213.64,0.0003399,10]
[310249600,1704421846420,-2033.52523904,0.00034794,2]
[310249601,1704421846429,-2089.14115,0.00034794,2]
[310249603,1704421846438,-1934.031745,0.00034794,2]
[310249605,1704421846449,-34620.98670552,0.000348,2]
[310249606,1704421846459,-154.14359681,0.00034815,2]
[310249607,1704421846470,-150.0,0.00034895,2]
[310249608,1704421846478,-157.40105,0.00034898,2]
[310249609,1704421846489,-11640.43464417,0.00034899,2]
[310249610,1704421846498,-9204.86448213,0.000349,2]
[310249611,1704421846507,-37358.10245342,0.000349,2]
[310249662,1704423032233,-300.0,0.00022899,2]
[310249663,1704423032242,-115401.1963,0.000229,2]
[310249664,1704423032252,-169.75599894,0.000249,2]
[310249665,1704423032261,-1580.1889945,0.00025,2]
[310249666,1704423032271,-2122.0,0.000251,2]
[310249667,1704423032280,-23279.0,0.000251,2]
[310249668,1704423032290,-250.0,0.00027,3]
[310249669,1704423032299,-155.0,0.00027397,2]
[310249670,1704423032309,-500.0,0.00028548,2]
[310249671,1704423032318,-155.0,0.00028767,2]
[310249672,1704423032328,-300.0,0.00029,3]
[310249673,1704423032338,-248.59,0.00029606,2]
[310249674,1704423032348,-172.66654664,0.0003,4]
[310249675,1704423032358,-9617.21818434,0.0003,2]
[310249676,1704423032367,-24652.47648556,0.0003,4]
[310249677,1704423032377,-689.70324588,0.0003,2]
[310249678,1704423032389,-155.0,0.0003,2]
[310249679,1704423032401,-2545.93649865,0.0003,4]
[310249680,1704423032410,-15956.19452776,0.0003,2]
[310249681,1704423032422,-522.79594744,0.0003,2]
[310249682,1704423032434,-357.61614109,0.0003,2]
[310249683,1704423032450,-421.07761078,0.0003,2]
[310249684,1704423032462,-3710.9630133,0.0003,2]
[310249685,1704423032485,-1258.25275963,0.0003,2]
[310249686,1704423032497,-201.0,0.0003,2]
[310249687,1704423032507,-155.0,0.00030137,2]
[310249688,1704423032517,-250.0,0.00030536,2]
[310249689,1704423032528,-761.1805144,0.00030608,2]
[310249690,1704423032561,-628.4394856,0.00030608,2]
[310249691,1704423032572,-104.7245755,0.00030666,2]
[310249692,1704423032775,-728.2754245,0.00030666,2]
[310249693,1704423032785,-1149.472,0.00030666,2]
[310249694,1704423032795,-476.19713815,0.00030666,2]
[310249695,1704423032808,-566.4447676,0.00030666,2]
[310249703,1704423038178,-886.14209425,0.00030666,2]
[310249704,1704423038188,-197.36,0.00030666,2]
[310249705,1704423038198,-3262.09790575,0.00030666,2]
[310249706,1704423038410,-14815.49409425,0.00030666,2]
[310249707,1704423038421,-667.494,0.00030666,2]
[310249708,1704423038431,-200.998,0.00030666,2]
[310249709,1704423038442,-500.0,0.00030734,2]
[310249710,1704423038453,-350.0,0.00031,3]
[310249711,1704423038463,-7270.78937991,0.00031,2]
[310249712,1704423038473,-1106.91,0.00031507,2]
[310249713,1704423038483,-155.0,0.00031507,2]
[310249714,1704423038493,-10000.0,0.0003181,2]
[310249715,1704423038503,-250.0,0.0003185,2]
[310249716,1704423038513,-248.59,0.0003187,2]
[310249717,1704423038523,-163.01,0.00031936,2]
[310249718,1704423038533,-150.0,0.00031952,2]
[310249719,1704423038543,-193.31320016,0.00032,4]
[310249720,1704423038553,-304.96762489,0.00032,2]
[310249721,1704423038563,-304.96762489,0.00032,2]
[310249722,1704423038573,-159.42146552,0.00032,2]
[310249723,1704423038583,-163.73,0.000322,2]
[310249724,1704423038594,-1884.42,0.00032436,2]
[310249725,1704423038606,-232.56,0.00032818,2]
[310249726,1704423038617,-22348.7049293,0.00032867,4]
[310249727,1704423038628,-282.73497521,0.00032876,2]
[310249728,1704423038640,-188.95,0.00032877,15]
[310249729,1704423038650,-5234.72,0.00032877,2]
[310249730,1704423038661,-36911.25,0.00032877,2]
[310249731,1704423038671,-51844.62,0.00032877,2]
[310249732,1704423038683,-157.41056711,0.00032877,2]
[310249733,1704423038693,-500.0,0.00032921,2]
[310249744,1704423038944,-400.0,0.00033,3]
[310249745,1704423038955,-1000.0,0.00033155,2]
[310249746,1704423038966,-153.08464517,0.00033155,2]
[310249747,1704423038975,-153.84,0.00033472,2]
[310249748,1704423038985,-836.99,0.00033475,2]
[310249749,1704423038996,-3192.67213276,0.00033656,5]
[310249750,1704423039006,-833.0,0.00033666,2]
[310249751,1704423039015,-1927.0,0.00033666,2]
[310249752,1704423039025,-232.56,0.00033797,2]
[310249753,1704423039034,-216.28993255,0.00033879,2]
[310249754,1704423039045,-1000.0,0.00034,4]
[310249755,1704423039056,-248.59,0.00034134,2]
[310249756,1704423039066,-503.30004599,0.00034137,2]
[310249757,1704423039075,-625.73218269,0.00034189,2]
[310249758,1704423039086,-1206.29126265,0.00034189,2]
[310249759,1704423039095,-153.84,0.00034486,2]
[310249760,1704423039105,-157.39326305,0.00034546,4]
[310249761,1704423039114,-3192.67213276,0.0003461,7]
[310249762,1704423039125,-500.0,0.0003462,2]
[310249763,1704423039135,-500.0,0.00034621,2]
[310249764,1704423039145,-157.40105,0.00034698,2]
[310249765,1704423039155,-232.56,0.00034775,2]
[310249766,1704423039164,-157.40105,0.00034798,2]
[310249767,1704423039174,-9578.01639828,0.00034889,7]
[310249768,1704423039183,-54275.4262569,0.0003489,7]
[310249769,1704423039193,-47890.0819914,0.00034891,7]
[310249770,1704423039202,-737.55,0.00034893,2]
[310249771,1704423039211,-157.40105,0.00034898,2]
[310249772,1704423039221,-3286.93466783,0.00034899,2]
[310249773,1704423039230,-10062.6772778,0.00034899,5]
[310249774,1704423039239,-65315.44960121,0.000349,2]
[310249775,1704423039249,-200.0,0.000349,2]
[310249776,1704423039258,-858.745796,0.000349,2]
[310249777,1704423039268,-155.0,0.000349,120]
[310249778,1704423039278,-155.77846826,0.000349,4]
[310249779,1704423039288,-858.35344621,0.000349,4]
[310249780,1704423039298,-3000.0,0.000349,2]
[310249781,1704423039307,-1528.141427,0.000349,16]
[310249782,1704423039317,-564.98625095,0.000349,2]
[310249783,1704423039326,-53319.44972599,0.00034901,2]
[310249784,1704423039353,-609.47680672,0.00034901,2]
[310249785,1704423039365,-9523.92865966,0.00034901,2]
[310249786,1704423039385,-3314.44876934,0.00034901,2]
[310249787,1704423039421,-424.88308538,0.00034901,2]
[310249789,1704423040799,-695.7,0.00034901,2]
[310249790,1704423040894,-305.18000004,0.00034901,2]
[310249791,1704423040952,-865.44923091,0.00034901,2]
[310249792,1704423040964,-322.87653265,0.00034901,2]
[310249793,1704423040976,-280.69400187,0.00034901,2]
[310249794,1704423041767,-17792.52606597,0.00034901,2]
[310249892,1704423043209,-7573.40856718,0.00034901,2]
[310249893,1704423043222,-1889.51991109,0.00034901,2]
[310249894,1704423043232,-3384.7130001,0.00034901,2]
[310249895,1704423043242,-584.7142561,0.00034901,2]
[310249896,1704423043268,-401.27445239,0.00034901,2]
[310249897,1704423043280,-6042.49676651,0.00034901,2]
[310249898,1704423043289,-180.0,0.00034925,2]
[310249899,1704423043300,-1225.241072,0.00034931,2]
[310249900,1704423043309,-1125.02346222,0.00034931,2]
[310249901,1704423043356,-1689.280424,0.00034931,2]
[310249902,1704423043372,-868.36769588,0.00034931,2]
[310249903,1704423043389,-1778.4433229,0.00034931,2]
[310249904,1704423043401,-2785.521533,0.00034931,2]
[310249905,1704423043412,-2578.708993,0.00034931,2]
[310249906,1704423043422,-209.14,0.00034993,2]
[310249907,1704423043432,-157.40105,0.00034998,2]
[310249908,1704423043443,-506.47927807,0.00035,14]
[310249909,1704423043452,-4350.8,0.00035,2]
[310249910,1704423043462,-1810.98,0.00035,2]
[310249911,1704423043471,-570.19444389,0.00035,4]
[310249912,1704423043482,-177.77723547,0.00035,4]
[310249913,1704423043491,-1480.04650595,0.00035,2]
[310249914,1704423043502,-222.92024464,0.00035,4]
[310249915,1704423043511,-237.03565395,0.00035,4]
[310249916,1704423043520,-2946.05,0.00035,2]
[310249917,1704423043529,-505.64383714,0.00035,2]
[310249918,1704423043538,-2000.0,0.00035,3]
[310249919,1704423043547,-10618.65,0.00035,2]
[310249920,1704423043557,-450.0,0.00035,3]
[310249921,1704423043566,-2500.0,0.00035,2]
[310249922,1704423043576,-18961.25296946,0.00035,4]
[310249923,1704423043586,-1531.55134,0.00035068,2]
[310249924,1704423043595,-6826.393632,0.00035068,2]
[310249925,1704423043605,-3481.901917,0.00035068,2]
[310249926,1704423043614,-3223.386241,0.00035068,2]
[310249927,1704423043624,-157.40105,0.00035098,2]
[310249928,1704423043634,-500.0,0.00035107,2]
[310249929,1704423043646,-157.40105,0.00035198,2]
[310249930,1704423043657,-677.58248962,0.00035258,4]
[310249931,1704423043667,-157.40105,0.00035298,2]
[310249932,1704423043678,-2144.171876,0.00035342,2]
[310249933,1704423043688,-9556.951085,0.00035342,2]
[310249934,1704423043699,-4874.662683,0.00035342,2]
[310249935,1704423043763,-2527.47537973,0.00035342,2]
[310249936,1704423045532,-155.0,0.0003,2]
[310249937,1704423045543,-240.57673,0.00034899,2]
[310249969,1704423046282,-2147.80905048,0.00034899,2]
[310249971,1704423046292,-204.83,0.00035332,10]
[310249973,1704423046302,-1985.26535827,0.00035342,2]
[310249975,1704423046311,-157.40105,0.00035398,2]
[310249977,1704423046321,-157.40105,0.00035498,2]
[310249978,1704423046331,-153.84,0.000355,2]
[310249980,1704423046340,-5000.0,0.00035516,2]
[310249982,1704423046350,-9303.96489237,0.00035516,3]
[310249984,1704423046366,-4588.99457,0.00035516,3]
[310249986,1704423046378,-7595.3,0.00035516,3]
[310249988,1704423046389,-3403.18914,0.00035516,3]
[310249991,1704423046402,-4802.8405425,0.00035516,3]
[310249993,1704423046413,-4500.0,0.00035516,3]
[310249995,1704423046425,-1081.22470541,0.00035516,3]
[310249997,1704423046436,-903.18109986,0.00035516,3]
[310249999,1704423046536,-408.1979072,0.00035516,3]
[310250000,1704423046602,-14522.43788706,0.00035516,3]
[310250002,1704423093379,625.73218269,0.00022079,2]
[310250003,1704423093407,1454.58159855,0.00022079,2]
[310250004,1704423110171,200.21979921,0.00020699,2]
[310250005,1704423116350,854.8821237,0.00022079,2]
[310250006,1704423118162,155.0,0.00022079,2]
[310250007,1704423121501,155.0,0.00022079,2]
[310250008,1704423136159,301.69578453,0.00022079,2]
[310250009,1704423137489,251.77096091,0.00022079,2]
[310250010,1704423262990,244.25075034,0.00022,2]
[310250011,1704423522057,-3902.68475495,0.00022769,2]
[310250012,1704423522080,-304391.0981,0.000228,2]
[310250013,1704423522102,-1691.5194,0.000228,2]
[310250014,1704423522129,-166.50500671,0.00022899,2]
[310250015,1704423522151,-174.70804979,0.000229,2]
[310250016,1704423522174,-529.30369714,0.000229,2]
[310250017,1704423522198,-214.92658503,0.00022999,2]
[310250018,1704423522221,-269.76999987,0.00022999,2]
[310250019,1704423522245,-12826.08102487,0.00022999,2]
[310250020,1704423522267,-3941.75891139,0.00022999,2]
[310250021,1704423522291,-7671891.64447025,0.00023,2]
[310250022,1704423572699,5603.25,0.00022177,2]
[310250023,1704423601155,164.32,0.00022399,2]
[310250024,1704423601243,-2823.77456974,0.000229,2]
[310250025,1704423601266,-199.86895926,0.00022998,2]
[310250026,1704423601288,-159.8713807,0.00022998,2]
[310250027,1704423601310,-313.64253032,0.00022999,4]
[310250028,1704423601333,-458.90151082,0.00022999,4]
[310250029,1704423601356,-395.26308634,0.00022999,4]
[310250030,1704423601380,-15495504.9993963,0.00023,2]
[310250031,1704423601402,-2254919.83285449,0.00023,2]
[310250032,1704423609486,514.40879808,0.00022999,2]
[310250033,1704423627427,1233.76827622,0.00022177,2]
[310250034,1704423645411,1233.76827622,0.00022177,2]
[310250035,1704423663407,98581.1633,0.000227,2]
[310250036,1704423663938,1233.76827622,0.00022177,2]
[310250037,1704423679916,1233.76827622,0.00022177,2]
[310250038,1704423679975,7500.0,0.000229,2]
[310250039,1704423697919,1233.76827622,0.00022177,2]
[310250040,1704423713917,1233.76827622,0.00022177,2]
[310250041,1704423736553,5305.8572,0.000229,2]
[310250042,1704423737894,150.0,0.0002277,2]
[310250043,1704423738431,737.20444847,0.00022177,2]
[310250044,1704423739142,295.9555104,0.00022999,2]
[310250045,1704423739749,532.01558641,0.00022177,2]
[310250046,1704423740234,159.03,0.00022343,2]
[310250047,1704423740640,159.03,0.00022421,2]
[310250048,1704423740674,291.41637742,0.00022177,2]
[310250049,1704423740775,876.43462916,0.00022177,2]
[310250050,1704423740863,159.03,0.00022499,2]
[310250051,1704423741043,1161.79445741,0.00021955,2]
[310250052,1704423741121,159.03,0.00022576,2]
[310250053,1704423741342,159.03,0.00022654,2]
[310250054,1704423741563,159.03,0.00022732,2]
[310250055,1704423741788,159.03,0.00022809,2]
[310250056,1704423741833,282.07277514,0.00022177,2]
[310250057,1704423742056,6476.39239237,0.00022066,2]
[310250058,1704423742125,159.03,0.00022887,2]
[310250059,1704423742189,155.0,0.00022177,2]
[310250060,1704423742269,155.0,0.00022177,2]
[310250061,1704423742316,159.03,0.00022964,2]
[310250062,1704423742407,155.0,0.00019959,2]